bitfinex/quotes_ETHUSD_20241009
["timestamp","ask_amount","ask_price","bid_price","bid_amount"]
[1728474466393,0.12706376,2441.4,2441.3,64.73170894]
[1728474467395,0.00564876,2441.4,2441.3,64.82533587]
[1728474467595,0.10957076,2441.4,2441.3,68.78550823]
[1728474467971,0.10957076,2441.4,2441.3,69.69337444]
[1728474468169,0.10957076,2441.4,2441.3,69.69395852]
[1728474468492,0.10957076,2441.4,2441.3,66.16007607]
[1728474468896,0.10957076,2441.4,2441.3,69.02838649]
[1728474469197,0.10957076,2441.4,2441.3,72.07452604]
[1728474469497,0.10957076,2441.4,2441.3,107.07452604]
[1728474469662,0.10957076,2441.4,2441.3,107.981881]
[1728474469988,0.10957076,2441.4,2441.3,107.98187775]
[1728474470364,0.10957076,2441.4,2441.3,107.07452604]
[1728474470767,0.10957076,2441.4,2441.3,110.02568996]
[1728474470997,0.10957076,2441.4,2441.3,107.56168996]
[1728474471773,0.10957076,2441.4,2441.3,104.02838649]
[1728474472561,0.10957076,2441.4,2441.3,106.10632855]
[1728474472766,0.10957076,2441.4,2441.3,95.37878661]
[1728474473164,0.10957076,2441.4,2441.3,62.94402257]
[1728474473407,0.10957076,2441.4,2441.3,60.37878661]
[1728474473896,0.10957076,2441.4,2441.3,63.37878661]
[1728474474086,0.10957076,2441.4,2441.3,63.92878661]
[1728474475001,0.10957076,2441.4,2441.3,67.70496324]
[1728474475296,0.10957076,2441.4,2441.3,66.89306324]
[1728474475465,0.10957076,2441.4,2441.3,63.87319027]
[1728474475801,0.10957076,2441.4,2441.3,60.09701364]
[1728474477900,0.10957076,2441.4,2441.3,62.66275611]
[1728474478199,0.10957076,2441.4,2441.3,60.09701364]
[1728474478517,0.10957076,2441.4,2441.3,36.35176963]
[1728474478866,0.10957076,2441.4,2441.3,33.78601764]
[1728474479166,0.10957076,2441.4,2441.3,33.69239071]
[1728474479799,0.10957076,2441.4,2441.3,49.45999471]
[1728474480003,0.10957076,2441.4,2441.3,46.66999471]
[1728474480905,0.10957076,2441.4,2441.3,37.30527871]
[1728474483213,0.10957076,2441.4,2441.3,37.79244263]
[1728474483384,0.10957076,2441.4,2441.3,48.23701951]
[1728474483573,0.10957076,2441.4,2441.3,48.78701951]
[1728474483768,0.10957076,2441.4,2441.3,46.22126752]
[1728474484513,0.10957076,2441.4,2441.3,46.99996752]
[1728474487728,0.10957076,2441.4,2441.3,46.5128036]
[1728474488536,0.10957076,2441.4,2441.3,46.64172096]
[1728474493836,0.10957076,2441.4,2441.3,49.07829112]
[1728474494039,0.10957076,2441.4,2441.3,49.0782372]
[1728474494415,0.10957076,2441.4,2441.3,47.04310199]
[1728474494950,0.10957076,2441.4,2441.3,44.47766839]
[1728474495441,0.10957076,2441.4,2441.3,41.40792697]
[1728474495647,0.10957076,2441.4,2441.3,39.87140898]
[1728474495939,0.10957076,2441.4,2441.3,37.30527871]
[1728474497842,0.10957076,2441.4,2441.3,37.94200776]
[1728474498237,0.10957076,2441.4,2441.3,32.94200776]
[1728474498612,0.10957076,2441.4,2441.3,37.94200776]
[1728474498811,0.10957076,2441.4,2441.3,37.30527871]
[1728474499252,0.10957076,2441.4,2441.3,32.30527871]
[1728474499544,0.10957076,2441.4,2441.3,32.9421849]
[1728474499914,0.10957076,2441.4,2441.3,32.30527871]
[1728474501427,0.10957076,2441.4,2441.3,39.87140898]
[1728474501634,0.10957076,2441.4,2441.3,48.78439319]
[1728474502335,0.10957076,2441.4,2441.3,48.29722927]
[1728474502710,0.10957076,2441.4,2441.3,49.07012927]
[1728474502910,0.10957076,2441.4,2441.3,49.07043245]
[1728474503109,0.10957076,2441.4,2441.3,46.503999]
[1728474503342,0.10957076,2441.4,2441.3,49.07074409]
[1728474505746,0.10957076,2441.4,2441.3,49.07085731]
[1728474506314,0.10957076,2441.4,2441.3,49.07093734]
[1728474507449,0.10957076,2441.4,2441.3,24.08578534]
[1728474507654,0.10957076,2441.4,2441.3,74.17948734]
[1728474508244,0.10957076,2441.4,2441.3,71.612549]
[1728474509442,0.10957076,2441.4,2441.3,67.83937697]
[1728474509948,0.10957076,2441.4,2441.3,63.75179897]
[1728474510121,0.10957076,2441.4,2441.3,51.98670571]
[1728474511893,0.10957076,2441.4,2441.3,41.29670371]
[1728474512024,0.10957076,2441.4,2441.3,27.25793471]
[1728474512229,0.10957076,2441.4,2441.3,20.06065659]
[1728474512549,0.88617076,2441.4,2441.3,3.61115871]
[1728474513422,0.88617076,2441.4,2441.3,0.22395671]
[1728474513623,1.38436284,2441.4,2441.3,0.22395671]
[1728474514941,1.38436284,2441.4,2441.3,0.01921446]
[1728474515130,5.48037284,2441.4,2441.3,0.01921446]
[1728474515338,1.38436284,2441.4,2441.3,0.01921446]
[1728474516069,1.38436284,2441.4,2441.3,0.4016466]
[1728474516267,5.48037284,2441.4,2441.3,0.4016466]
[1728474516733,5.48037284,2441.4,2441.3,0.78400377]
[1728474517141,9.25354487,2441.4,2441.3,0.78400377]
[1728474517953,9.25354487,2441.4,2441.3,0.4016466]
[1728474521178,9.25354487,2441.4,2441.3,0.01921446]
[1728474523887,5.48037284,2441.4,2441.3,0.01921446]
[1728474536450,7.22270319,2441.4,2441.3,0.01921446]
[1728474568426,11.53970319,2441.4,2441.3,0.01921446]
[1728474568729,7.22270319,2441.4,2441.3,0.01921446]
[1728474581360,6.44610319,2441.4,2441.3,0.01921446]
[1728474591289,5.94791111,2441.4,2441.3,0.01921446]
[1728474596051,5.89791111,2441.4,2441.3,0.01921446]
[1728474598724,5.90355987,2441.4,2441.3,0.01921446]
[1728474605511,6.72715987,2441.4,2441.3,0.01921446]
[1728474610920,5.90355987,2441.4,2441.3,0.01921446]
[1728474611323,6.98119086,2441.4,2441.3,0.01921446]
[1728474617236,5.90355987,2441.4,2441.3,0.01921446]
[1728474619114,4.16122952,2441.4,2441.3,0.01921446]
[1728474620946,4.16122952,2441.4,2441.3,0.83531446]
[1728474621920,5.90355987,2441.4,2441.3,0.83531446]
[1728474630150,4.16122952,2441.4,2441.3,0.83531446]
[1728474630353,5.90355987,2441.4,2441.3,0.83531446]
[1728474631755,5.98803009,2441.4,2441.3,0.83531446]
[1728474637374,6.93386159,2441.4,2441.3,0.01921446]
[1728474637582,7.76646159,2441.4,2441.3,0.01921446]
[1728474650373,8.31646159,2441.4,2441.3,0.01921446]
[1728474652606,11.31646159,2441.4,2441.3,0.01921446]
[1728474654563,11.51654938,2441.4,2441.3,0.01921446]
[1728474658810,9.57413124,2441.4,2441.3,0.01921446]
[1728474659007,11.31646159,2441.4,2441.3,0.01921446]
[1728474659211,15.63346159,2441.4,2441.3,0.01921446]
[1728474677946,16.27549642,2441.4,2441.3,0.01921446]
[1728474688157,4.88773457,2441.4,2441.3,0.01921446]
[1728474688368,4.24569974,2441.4,2441.3,0.84541446]
[1728474688929,5.98803009,2441.4,2441.3,0.84541446]
[1728474690070,4.24569974,2441.4,2441.3,0.84541446]
[1728474694669,0.14968974,2441.4,2441.3,0.84541446]
[1728474695634,4.24569974,2441.4,2441.3,0.84541446]
[1728474701478,4.24569974,2441.4,2441.3,1.22995591]
[1728474707783,4.24569974,2441.4,2441.3,0.84541446]
[1728474711136,0.14968974,2441.4,2441.3,0.84541446]
[1728474712097,4.24569974,2441.4,2441.3,0.84541446]
[1728474717702,0.14968974,2441.4,2441.3,0.84541446]
[1728474717858,4.24569974,2441.4,2441.3,0.84541446]
[1728474723373,0.14968974,2441.4,2441.3,0.84541446]
[1728474723708,4.24569974,2441.4,2441.3,0.84541446]
[1728474723907,0.14968974,2441.4,2441.3,0.84541446]
[1728474724511,4.24569974,2441.4,2441.3,0.84541446]
[1728474727580,4.24569974,2441.4,2441.3,0.01921446]
[1728474732885,0.14968974,2441.4,2441.3,0.01921446]
[1728474737037,0.14968974,2441.4,2441.3,0.39771591]
[1728474743014,0.14968974,2441.4,2441.3,3.39771591]
[1728474743219,0.14968974,2441.4,2441.3,0.39771591]
[1728474745121,0.14968974,2441.4,2441.3,3.39771591]
[1728474745531,0.14968974,2441.4,2441.3,0.39771591]
[1728474747545,0.14968974,2441.4,2441.3,1.17711591]
[1728474749050,0.14968974,2441.4,2441.3,8.27328591]
[1728474749236,0.14968974,2441.4,2441.3,60.10931826]
[1728474749549,0.06521952,2441.4,2441.3,65.10931826]
[1728474750346,0.06521952,2441.4,2441.3,67.68034435]
[1728474751408,0.06521952,2441.4,2441.3,65.10931826]
[1728474752707,0.06521952,2441.4,2441.3,63.36698791]
[1728474752908,0.06521952,2441.4,2441.3,8.27328591]
[1728474753135,0.14318158,2441.4,2441.3,8.27328591]
[1728474753506,0.14318158,2441.4,2441.3,4.17711591]
[1728474753710,0.14318158,2441.4,2441.3,3.79861446]
[1728474754809,0.14318158,2441.4,2441.3,0.79861446]
[1728474755210,0.14318158,2441.4,2441.3,0.01921446]
[1728474755865,4.23919158,2441.4,2441.3,0.01921446]
[1728474758414,4.23919158,2441.4,2441.3,0.40174492]
[1728474759319,0.14318158,2441.4,2441.3,0.40174492]
[1728474759542,0.14318158,2441.4,2441.3,1.15664492]
[1728474759934,0.14318158,2441.4,2441.3,6.07812341]
[1728474760432,0.14318158,2441.4,2441.3,9.07812341]
[1728474761636,0.14318158,2441.4,2441.3,63.61645423]
[1728474761837,0.14318158,2441.4,2441.3,64.25393253]
[1728474762055,0.06521952,2441.4,2441.3,64.25393253]
[1728474764561,0.06521952,2441.4,2441.3,14.71542553]
[1728474764747,0.06521952,2441.4,2441.3,64.80912753]
[1728474764925,0.06521952,2441.4,2441.3,63.78929495]
[1728474765123,0.06521952,2441.4,2441.3,64.17146995]
[1728474765348,0.06521952,2441.4,2441.3,64.80847675]
[1728474770856,0.06521952,2441.4,2441.3,64.17146995]
[1728474771063,0.06521952,2441.4,2441.3,64.80847675]
[1728474771681,0.06521952,2441.4,2441.3,64.17146995]
[1728474771840,0.06521952,2441.4,2441.3,64.80848882]
[1728474772042,0.06521952,2441.4,2441.3,64.42631382]
[1728474772282,0.06521952,2441.4,2441.3,63.78929495]
[1728474772479,0.06521952,2441.4,2441.3,64.42631698]
[1728474772676,0.06521952,2441.4,2441.3,64.808447]
[1728474774048,0.06521952,2441.4,2441.3,65.358447]
[1728474774358,0.06521952,2441.4,2441.3,67.29035695]
[1728474774902,0.06521952,2441.4,2441.3,64.72142497]
[1728474775192,0.06521952,2441.4,2441.3,67.28784098]
[1728474777397,0.06521952,2441.4,2441.3,64.7212406]
[1728474778581,0.06521952,2441.4,2441.3,64.7211339]
[1728474779666,0.06521952,2441.4,2441.3,67.28655795]
[1728474781012,0.06521952,2441.4,2441.3,64.33929495]
[1728474781497,0.06521952,2441.4,2441.3,64.72108461]
[1728474782002,0.06521952,2441.4,2441.3,64.33929495]
[1728474782292,0.06521952,2441.4,2441.3,64.72108369]
[1728474782702,0.8032,2442.5,2442.1,7.0947]
[1728474782907,0.8032,2442.5,2442.2,1.118956]
[1728474783062,0.07820869,2442.4,2442.2,1.118956]
[1728474783268,0.07820869,2442.4,2442.2,1.50074474]
[1728474783502,0.7895,2442.5,2442.4,0.008]
[1728474783685,0.7895,2442.5,2442.4,0.01360418]
[1728474784006,4.88366,2442.5,2442.4,0.01360418]
[1728474784160,0.7895,2442.5,2442.4,0.01360418]
[1728474788509,0.79514876,2442.5,2442.4,0.01360418]
[1728474788801,0.79514876,2442.5,2442.4,0.22110477]
[1728474789211,0.87078243,2442.5,2442.4,0.22110477]
[1728474789574,4.96494243,2442.5,2442.4,0.22110477]
[1728474790208,0.87078243,2442.5,2442.4,0.22110477]
[1728474791313,4.96494243,2442.5,2442.4,0.22110477]
[1728474791513,0.87078243,2442.5,2442.4,0.22110477]
[1728474793452,1.36726467,2442.5,2442.4,0.01360418]
[1728474793616,5.46142467,2442.5,2442.4,0.01360418]
[1728474795037,1.36726467,2442.5,2442.4,0.01360418]
[1728474795238,4.96494243,2442.5,2442.4,0.01360418]
[1728474798174,0.87078243,2442.5,2442.4,0.01360418]
[1728474798857,0.08128243,2442.5,2442.4,0.01360418]
[1728474800626,0.08128243,2442.5,2442.4,47.56781986]
[1728474800961,0.00564876,2442.5,2442.4,47.86697099]
[1728474801114,0.00564876,2442.5,2442.4,51.96961925]
[1728474801318,0.00564876,2442.5,2442.4,48.55420925]
[1728474801717,0.00564876,2442.5,2442.4,48.55414602]
[1728474803250,0.00564876,2442.5,2442.4,50.93264948]
[1728474803452,0.00564876,2442.5,2442.4,50.29647637]
[1728474806194,0.00564876,2442.5,2442.4,55.29647637]
[1728474806497,0.00564876,2442.5,2442.4,56.48264948]
[1728474808498,0.00564876,2442.5,2442.4,56.48224277]
[1728474810006,0.00564876,2442.5,2442.4,55.46551179]
[1728474810307,0.00564876,2442.5,2442.4,19.93456635]
[1728474810503,0.00564876,2442.5,2442.4,16.21278428]
[1728474810805,0.00564876,2442.5,2442.4,66.30648628]
[1728474811878,0.00564876,2442.5,2442.4,65.92562009]
[1728474812080,0.00564876,2442.5,2442.4,65.92554135]
[1728474812309,0.00564876,2442.5,2442.4,66.30638169]
[1728474812472,0.00564876,2442.5,2442.4,70.40902995]
[1728474813800,0.00564876,2442.5,2442.4,69.77335513]
[1728474814009,0.00564876,2442.5,2442.4,70.40902995]
[1728474814315,0.00564876,2442.5,2442.4,69.77335513]
[1728474815210,0.00564876,2442.5,2442.4,69.39251479]
[1728474815413,0.00564876,2442.5,2442.4,70.02821916]
[1728474815777,0.00564876,2442.5,2442.4,69.39251479]
[1728474816110,0.00564876,2442.5,2442.4,69.7734857]
[1728474816724,0.00564876,2442.5,2442.4,70.40924753]
[1728474816885,0.00564876,2442.5,2442.4,69.7734857]
[1728474822724,0.00564876,2442.5,2442.4,69.83491258]
[1728474823022,0.00564876,2442.5,2442.4,69.39251479]
[1728474825312,0.00564876,2442.5,2442.4,69.45394044]
[1728474826232,0.00564876,2442.5,2442.4,69.39251479]
[1728474826432,0.00564876,2442.5,2442.4,69.87967871]
[1728474829131,0.00564876,2442.5,2442.4,69.39251479]
[1728474830537,0.8843538,2443.5,2443.3,7.0928]
[1728474830838,0.8843538,2443.5,2443.4,1.12417628]
[1728474831039,0.8843538,2443.5,2443.4,1.13217628]
[1728474831337,0.8843538,2443.5,2443.4,0.01921446]
[1728474834246,0.9493172,2443.5,2443.4,0.01921446]
[1728474835400,0.9493172,2443.5,2443.4,0.10105851]
[1728474835801,0.9493172,2443.5,2443.4,0.01921446]
[1728474836042,0.9493172,2443.5,2443.4,0.10105848]
[1728474836209,0.1874172,2443.5,2443.4,4.22973533]
[1728474837403,0.1874172,2443.5,2443.4,4.43500905]
[1728474838448,0.1874172,2443.5,2443.4,4.35316503]
[1728474838649,0.1874172,2443.5,2443.4,3.22448818]
[1728474839542,0.1874172,2443.5,2443.4,3.30633055]
[1728474839871,0.1874172,2443.5,2443.4,7.39898055]
[1728474841145,0.1874172,2443.5,2443.4,3.30633055]
[1728474841357,0.1874172,2443.5,2443.4,7.39898055]
[1728474842439,0.1874172,2443.5,2443.4,3.30633055]
[1728474843264,0.1874172,2443.5,2443.4,3.22448818]
[1728474845187,0.1874172,2443.5,2443.4,0.01921446]
[1728474845188,5.0633072,2443.5,2443.4,0.01921446]
[1728474845455,6.15311496,2443.5,2443.4,0.01921446]
[1728474852668,5.0633072,2443.5,2443.4,0.01921446]
[1728474854538,0.1874172,2443.5,2443.4,7.11186446]
[1728474854737,0.1874172,2443.5,2443.4,7.19370265]
[1728474855884,0.1224538,2443.5,2443.4,7.19370265]
[1728474856181,0.18663731,2443.5,2443.4,8.936033]
[1728474856346,0.18663731,2443.5,2443.4,10.73364911]
[1728474856685,0.18663731,2443.5,2443.4,8.99131876]
[1728474857908,0.1224538,2443.5,2443.4,8.99131876]
[1728474858204,0.18666674,2443.5,2443.4,4.89866876]
[1728474858423,0.18666674,2443.5,2443.4,8.99131876]
[1728474858699,0.18666674,2443.5,2443.4,4.89866876]
[1728474865000,0.18666674,2443.5,2443.4,1.89866876]
[1728474865202,0.18666674,2443.5,2443.4,0.01921446]
[1728474869653,4.27915674,2443.5,2443.4,0.01921446]
[1728474874870,0.18666674,2443.5,2443.4,0.01921446]
[1728474876054,4.27915674,2443.5,2443.4,0.01921446]
[1728474876593,4.27915674,2443.5,2443.4,0.4011153]
[1728474877675,0.18666674,2443.5,2443.4,0.4011153]
[1728474883027,0.18666674,2443.5,2443.4,0.01921446]
[1728474883332,0.18666674,2443.5,2443.4,0.40104637]
[1728474883624,0.18666674,2443.5,2443.4,1.2366026]
[1728474883923,0.18666674,2443.5,2443.4,1.31844641]
[1728474885202,0.18666674,2443.5,2443.4,0.48289018]
[1728474886501,0.18666674,2443.5,2443.4,0.01921446]
[1728474886705,0.18666674,2443.5,2443.4,0.40095753]
[1728474887345,0.18666674,2443.5,2443.4,0.48280134]
[1728474888522,0.18666674,2443.5,2443.4,0.40095753]
[1728474893258,0.18666674,2443.5,2443.4,0.01921446]
[1728474893590,0.18666674,2443.5,2443.4,0.40098395]
[1728474893920,0.18666674,2443.5,2443.4,0.48282754]
[1728474894653,0.18666674,2443.5,2443.4,4.57547754]
[1728474894951,0.18666674,2443.5,2443.4,8.82030029]
[1728474895151,0.18666674,2443.5,2443.4,8.7384567]
[1728474900135,0.18666674,2443.5,2443.4,8.35668721]
[1728474900464,0.18666674,2443.5,2443.4,8.73846612]
[1728474900955,0.18666674,2443.5,2443.4,4.64581612]
[1728474902673,0.18666674,2443.5,2443.4,4.26403721]
[1728474902905,0.18666674,2443.5,2443.4,4.64587171]
[1728474905073,0.18666674,2443.5,2443.4,3.40104896]
[1728474905246,0.18666674,2443.5,2443.4,0.40104896]
[1728474905565,5.03985674,2443.5,2443.4,0.40104896]
[1728474905979,5.03985674,2443.5,2443.4,0.40118652]
[1728474906350,5.03985674,2443.5,2443.4,0.01921446]
[1728474906547,6.12730845,2443.5,2443.4,0.01921446]
[1728474927691,5.03985674,2443.5,2443.4,0.01921446]
[1728474932439,4.27915674,2443.5,2443.4,0.01921446]
[1728474941249,0.18666674,2443.5,2443.4,3.84051446]
[1728474941572,0.18666674,2443.5,2443.4,3.92235847]
[1728474942562,0.18666674,2443.5,2443.4,3.84051446]
[1728474942861,0.18666674,2443.5,2443.4,0.84051446]
[1728474943225,0.18666674,2443.5,2443.4,1.34203838]
[1728474943966,0.18666674,2443.5,2443.4,8.43468838]
[1728474946967,0.18666674,2443.5,2443.4,53.47045238]
[1728474947172,0.1224538,2443.5,2443.4,48.04608338]
[1728474947471,0.1224538,2443.5,2443.4,46.85725038]
[1728474947670,0.1224538,2443.5,2443.4,45.626001]
[1728474951069,0.1224538,2443.5,2443.4,42.626001]
[1728474951471,0.1224538,2443.5,2443.4,45.626001]
[1728474952196,0.1224538,2443.5,2443.4,39.462361]
[1728474952496,0.1224538,2443.5,2443.4,35.173413]
[1728474953149,0.1224538,2443.5,2443.4,40.173413]
[1728474953584,0.1224538,2443.5,2443.4,35.173413]
[1728474954454,0.1224538,2443.5,2443.4,32.173413]
[1728474954656,0.1224538,2443.5,2443.4,35.173413]
[1728474954954,0.1224538,2443.5,2443.4,15.032433]
[1728474955156,0.18243839,2443.5,2443.4,15.032433]
[1728474955669,0.18243839,2443.5,2443.4,16.312252]
[1728474956277,0.1224538,2443.5,2443.4,16.312252]
[1728474956469,0.18243839,2443.5,2443.4,16.312252]
[1728474956872,0.18243839,2443.5,2443.4,12.219602]
[1728474957091,0.18243839,2443.5,2443.4,4.550516]
[1728474957959,0.18243839,2443.5,2443.4,0.01921446]
[1728474958157,6.76955874,2443.5,2443.4,0.01921446]
[1728474963311,5.02722839,2443.5,2443.4,0.01921446]
[1728474963503,4.27492839,2443.5,2443.4,0.01921446]
[1728474963660,0.18243839,2443.5,2443.4,0.01921446]
[1728474963867,0.18243839,2443.5,2443.4,15.35655471]
[1728474964085,0.18243839,2443.5,2443.4,11.70290093]
[1728474964298,0.18243839,2443.5,2443.4,5.04688293]
[1728474964595,0.18243839,2443.5,2443.4,3.01921446]
[1728474965160,0.18243839,2443.5,2443.4,3.10105774]
[1728474965590,0.18243839,2443.5,2443.4,3.01921446]
[1728474965993,0.18243839,2443.5,2443.4,0.01921446]
[1728474967165,4.27492839,2443.5,2443.4,0.01921446]
[1728474968103,7.10832561,2443.5,2443.4,0.01921446]
[1728474968409,7.90932561,2443.5,2443.4,0.01921446]
[1728474970372,9.936707,2443.5,2443.4,0.01921446]
[1728474972886,6.16699526,2443.5,2443.4,0.01921446]
[1728474975186,5.36599526,2443.5,2443.4,0.01921446]
[1728474978614,5.36599526,2443.5,2443.4,0.01921446]
[1728474978922,6.12429526,2443.5,2443.4,0.01921446]
[1728474980428,6.67429526,2443.5,2443.4,0.01921446]
[1728474982946,10.99129526,2443.5,2443.4,0.01921446]
[1728474983094,6.67429526,2443.5,2443.4,0.01921446]
[1728474984428,9.67429526,2443.5,2443.4,0.01921446]
[1728474989698,8.18641,2443.1,2442.3,0.8152]
[1728474989902,4.09432,2442.5,2442.3,0.8152]
[1728474990134,4.15199207,2442.4,2442.3,0.8152]
[1728474990338,4.15764083,2442.4,2442.3,0.8152]
[1728474994226,4.09513,2442.0,2441.5,4.09576]
[1728474994403,4.15764083,2442.4,2441.5,4.09576]
[1728474994404,4.09518,2441.9,2441.5,4.09576]
[1728474994609,0.0570551,2441.9,2441.6,4.09565]
[1728474994931,0.06266902,2441.8,2441.7,0.7737]
[1728474995548,0.06266902,2441.8,2441.7,3.78328534]
[1728474995745,0.06266902,2441.8,2441.7,3.78888952]
[1728474999149,0.06266902,2441.8,2441.7,7.88438952]
[1728475000314,0.06266902,2441.8,2441.7,0.78888952]
[1728475000514,0.06266902,2441.8,2441.7,3.78888952]
[1728475003079,0.06266902,2441.8,2441.7,8.77933539]
[1728475003240,0.06266902,2441.8,2441.7,8.69742819]
[1728475004622,0.00564876,2441.8,2441.7,8.69742819]
[1728475004822,0.0624792,2441.8,2441.7,8.69742819]
[1728475016617,0.00564876,2441.8,2441.7,8.69742819]
[1728475016787,0.06251846,2441.8,2441.7,8.69742819]
[1728475019319,0.06251846,2441.8,2441.7,49.52461488]
[1728475019818,0.00564876,2441.8,2441.7,49.52461488]
[1728475022937,0.00564876,2441.8,2441.7,54.52461488]
[1728475025911,0.00564876,2441.8,2441.7,15.43826488]
[1728475026135,0.00564876,2441.8,2441.7,65.53196688]
[1728475028445,0.00564876,2441.8,2441.7,68.09917787]
[1728475028662,0.00564876,2441.8,2441.7,62.73463688]
[1728475029024,0.00564876,2441.8,2441.7,65.30184787]
[1728475029342,0.00564876,2441.8,2441.7,56.15257588]
[1728475029850,0.00564876,2441.8,2441.7,58.72161074]
[1728475033559,0.00564876,2441.8,2441.7,51.76832374]
[1728475034809,0.00564876,2441.8,2441.7,51.7691416]
[1728475038257,0.00564876,2441.8,2441.7,52.3191416]
[1728475040003,5.38564876,2441.8,2441.7,52.3191416]
[1728475041215,5.38564876,2441.8,2441.7,50.0502536]
[1728475042887,5.38564876,2441.8,2441.7,50.05013139]
[1728475043419,5.38564876,2441.8,2441.7,47.48040088]
[1728475043573,5.38564876,2441.8,2441.7,50.05012675]
[1728475045017,5.38564876,2441.8,2441.7,50.05020802]
[1728475045929,5.38564876,2441.8,2441.7,47.48040088]
[1728475048274,5.38564876,2441.8,2441.7,66.08196688]
[1728475055296,5.1139293,2441.8,2441.7,66.08196688]
[1728475060865,5.11957806,2441.8,2441.7,66.08196688]
[1728475061522,5.11957806,2441.8,2441.7,69.08149319]
[1728475062995,5.11957806,2441.8,2441.7,69.69393461]
[1728475065014,5.11957806,2441.8,2441.7,69.696258]
[1728475065513,5.11957806,2441.8,2441.7,66.6944083]
[1728475065672,5.11957806,2441.8,2441.7,69.69641748]
[1728475066717,5.11957806,2441.8,2441.7,66.6944083]
[1728475066881,5.11957806,2441.8,2441.7,69.69632929]
[1728475067212,5.11957806,2441.8,2441.7,66.6944083]
[1728475067511,5.11957806,2441.8,2441.7,70.75731139]
[1728475067811,5.11957806,2441.8,2441.7,72.06017928]
[1728475068183,5.11957806,2441.8,2441.7,71.16988934]
[1728475068399,5.11957806,2441.8,2441.7,68.51386174]
[1728475068731,5.11957806,2441.8,2441.7,71.16842176]
[1728475068889,5.11957806,2441.8,2441.7,72.05832912]
[1728475069526,5.11957806,2441.8,2441.7,71.54117869]
[1728475069830,5.11957806,2441.8,2441.7,70.65118272]
[1728475070326,5.11957806,2441.8,2441.7,67.10698625]
[1728475072455,5.11957806,2441.8,2441.7,67.10684043]
[1728475076266,5.11957806,2441.8,2441.7,17.01313843]
[1728475076467,5.11957806,2441.8,2441.7,67.10684043]
[1728475078428,5.11957806,2441.8,2441.7,65.36600374]
[1728475078633,5.91667806,2441.8,2441.7,32.23760612]
[1728475078840,5.91667806,2441.8,2441.7,24.40674312]
[1728475079047,5.97386358,2441.8,2441.7,18.30415512]
[1728475079233,5.97386358,2441.8,2441.7,18.30441741]
[1728475079542,5.97386358,2441.8,2441.7,18.94254515]
[1728475080435,5.97386358,2441.8,2441.7,21.94254515]
[1728475080941,5.97386358,2441.8,2441.7,24.51485971]
[1728475081269,5.97386358,2441.8,2441.7,21.94221105]
[1728475081446,5.97386358,2441.8,2441.7,21.30441741]
[1728475081642,5.97386358,2441.8,2441.7,20.69185952]
[1728475082252,5.97386358,2441.8,2441.7,21.32970165]
[1728475082777,5.97386358,2441.8,2441.7,21.94211788]
[1728475085295,5.97386358,2441.8,2441.7,21.32970165]
[1728475086150,5.97386358,2441.8,2441.7,20.32893852]
[1728475087272,5.97386358,2441.8,2441.7,19.94985465]
[1728475087478,5.97386358,2441.8,2441.7,19.31201252]
[1728475087775,5.97386358,2441.8,2441.7,14.61292652]
[1728475088739,5.97386358,2441.8,2441.7,15.22504427]
[1728475089578,5.97386358,2441.8,2441.7,14.61292652]
[1728475089793,5.97386358,2441.8,2441.7,15.2250212]
[1728475090476,5.97386358,2441.8,2441.7,14.9823872]
[1728475093196,5.97386358,2441.8,2441.7,14.37029252]
[1728475093353,5.97386358,2441.8,2441.7,14.98218886]
[1728475095462,5.17676358,2441.8,2441.7,24.12555587]
[1728475095659,5.17676358,2441.8,2441.7,25.31260046]
[1728475095925,5.11957806,2441.8,2441.7,28.04449943]
[1728475096046,5.11957806,2441.8,2441.7,25.47525587]
[1728475101120,5.11957806,2441.8,2441.7,25.88783382]
[1728475101283,5.11957806,2441.8,2441.7,25.27593748]
[1728475103882,5.11957806,2441.8,2441.7,25.88726311]
[1728475106544,5.11957806,2441.8,2441.7,23.73384847]
[1728475106742,5.11957806,2441.8,2441.7,19.54983847]
[1728475107038,5.87467806,2441.8,2441.7,16.98161815]
[1728475107241,5.93135145,2441.8,2441.7,16.98198701]
[1728475108275,5.93135145,2441.8,2441.7,19.98198701]
[1728475108442,5.93135145,2441.8,2441.7,20.6192605]
[1728475108855,5.93135145,2441.8,2441.7,30.33140801]
[1728475109037,5.87467806,2441.8,2441.7,25.15155501]
[1728475109240,5.93135145,2441.8,2441.7,25.15155501]
[1728475111976,5.93135145,2441.8,2441.7,10.92758701]
[1728475112356,5.93135145,2441.8,2441.7,10.31589252]
[1728475113263,6.52448659,2441.8,2441.7,0.62688401]
[1728475113462,6.52448659,2441.8,2441.7,0.01518952]
[1728475114173,6.4678132,2441.8,2441.7,0.01518952]
[1728475114556,6.52424769,2441.8,2441.7,7.11068952]
[1728475114889,5.93111255,2441.8,2441.7,7.11068952]
[1728475116589,5.93111255,2441.8,2441.7,3.01518952]
[1728475118892,5.93111255,2441.8,2441.7,7.11068952]
[1728475120013,5.17601255,2441.8,2441.7,20.34221952]
[1728475120294,5.17601255,2441.8,2441.7,25.95381704]
[1728475120461,5.11957806,2441.8,2441.7,29.20956041]
[1728475120802,5.17596018,2441.8,2441.7,29.20956041]
[1728475125204,5.17596018,2441.8,2441.7,29.20939167]
[1728475127466,5.17596018,2441.8,2441.7,47.82351267]
[1728475128307,5.17596018,2441.8,2441.7,47.20648667]
[1728475128664,5.17596018,2441.8,2441.7,46.59505789]
[1728475129103,5.17596018,2441.8,2441.7,47.20650199]
[1728475130471,5.17596018,2441.8,2441.7,42.00452799]
[1728475130670,5.17596018,2441.8,2441.7,47.00452799]
[1728475131066,5.17596018,2441.8,2441.7,36.25842599]
[1728475131270,5.17596018,2441.8,2441.7,35.43788999]
[1728475131673,5.17596018,2441.8,2441.7,40.43788999]
[1728475132377,5.17596018,2441.8,2441.7,35.43790368]
[1728475132689,5.94866018,2441.8,2441.7,7.72214731]
[1728475134619,5.94866018,2441.8,2441.7,20.55546731]
[1728475134826,5.17596018,2441.8,2441.7,20.55546731]
[1728475134993,5.17596018,2441.8,2441.7,11.32478131]
[1728475136119,5.17596018,2441.8,2441.7,10.71332352]
[1728475136323,5.17596018,2441.8,2441.7,11.32484491]
[1728475136657,5.17596018,2441.8,2441.7,11.70705261]
[1728475137157,5.17596018,2441.8,2441.7,15.02567798]
[1728475139247,5.17596018,2441.8,2441.7,11.42304398]
[1728475139554,5.17596018,2441.8,2441.7,29.36832698]
[1728475139917,5.17596018,2441.8,2441.7,27.92859998]
[1728475141759,5.17596018,2441.8,2441.7,31.04607964]
[1728475141967,5.11957806,2441.8,2441.7,31.04607964]
[1728475142262,5.17418283,2441.8,2441.7,30.05235055]
[1728475142641,5.17418283,2441.8,2441.7,27.48487089]
[1728475142872,5.17418283,2441.8,2441.7,27.86691599]
[1728475143068,5.17418283,2441.8,2441.7,28.47818815]
[1728475143361,5.17418283,2441.8,2441.7,31.04518584]
[1728475143805,5.17418283,2441.8,2441.7,31.04504031]
[1728475144105,5.17418283,2441.8,2441.7,28.47818815]
[1728475144262,5.11957806,2441.8,2441.7,28.90544998]
[1728475145967,5.11957806,2441.8,2441.7,28.52340488]
[1728475146173,5.11957806,2441.8,2441.7,29.13457849]